[Event "Kuwait Championship Stage-I 2024"]
[Site "Qadsiya"]
[Date "2024.01.24"]
[Round "3.4"]
[White "Alhejab, Meshal"]
[Black "Alfaras, Abdulaziz"]
[Result "1-0"]
[ECO "C41"]
[WhiteElo "1787"]
[BlackElo "1438"]
[Annotator "NA RC"]
[PlyCount "43"]
[EventDate "2024.01.22"]
[EventType "swiss"]
[EventCountry "KUW"]
[SourceTitle "playchess.com"]
[Source "ChessBase"]
[SourceQuality "1"]
[TimeControl "5400+30"]

1. e4 {[%emt 0:15:00]} d6 {[%emt 0:00:09]} 2. d4 {[%emt 0:00:15]} Nd7 {[%emt 0:00:05]} 3. Nf3 {[%emt 0:00:25]} e5 {[%emt 0:00:34]} 4. Bc4 {[%emt 0:01:53]} h6 {[%emt 0:01:58]} 5. dxe5 {[%emt 0:07:43]} dxe5 {[%emt 0:00:26]} 6. Bxf7+ {[%emt 0:10:03]} Kxf7 {[%emt 0:25:50]} 7. Nxe5+ {[%emt 0:00:21]} Kf6 {[%emt 0:00:43]} 8. Qd4 {[%emt 0:02:25]} c5 {[%emt 0:11:45]} 9. Qd5 {[%emt 0:18:15]} Qe8 {[%emt 0:07:32]} 10. Ng4+ {[%emt 0:03:32]} Ke7 {[%emt 0:01:58]} 11. e5 {[%emt 0:01:39]} Qg6 {[%emt 0:05:13]} 12. Ne3 {[%emt 0:02:21]} Qe6 {[%emt 0:00:29]} 13. O-O {[%emt 0:00:46]} Qxe5 {[%emt 0:07:14]} 14. Qd3 {[%emt 0:32:52]} Nb6 {[%emt 0:07:40]} 15. Re1 {[%emt 0:00:00]} Kf7 {[%emt 0:01:29]} 16. Bd2 {[%emt 0:00:00]} c4 {[%emt 0:01:38]} 17. Nxc4 {[%emt 0:00:00]} Nxc4 {[%emt 0:06:41]} 18. Rxe5 {[%emt 0:00:00]} Nxe5 {[%emt 0:00:02]} 19. Qd5+ {[%emt 0:00:00]} Kf6 {[%emt 0:01:27]} 20. Bc3 {[%emt 0:00:00]} Be6 {[%emt 0:00:36]} 21. Bxe5+ {[%emt 0:00:00]} Kf5 {[%emt 0:00:08]} 22. g4+ {[%emt 0:04:00]} 1-0

[Event "Kuwait Championship Stage-I 2024"]
[Site "Qadsiya"]
[Date "2024.01.24"]
[Round "3.5"]
[White "Alabdaljader, Mohammed"]
[Black "Alsaqer, Meshal"]
[Result "0-1"]
[ECO "B11"]
[WhiteElo "1353"]
[BlackElo "1753"]
[Annotator "NA"]
[PlyCount "198"]
[EventDate "2024.01.22"]
[EventType "swiss"]
[EventCountry "KUW"]
[SourceTitle "playchess.com"]
[Source "ChessBase"]
[SourceQuality "1"]
[TimeControl "5400+30"]

1. e4 {[%emt 0:17:27]} c6 {[%emt 0:00:44]} 2. Nf3 {[%emt 0:00:06]} d5 {[%emt 0:00:09]} 3. Nc3 {[%emt 0:00:08]} dxe4 {[%emt 0:00:22]} 4. Nxe4 {[%emt 0:00:19]} Bg4 {[%emt 0:00:35]} 5. h3 {[%emt 0:00:24]} Bh5 {[%emt 0:00:33]} 6. Ng3 {[%emt 0:00:21]} Bxf3 {[%emt 0:01:19]} 7. Qxf3 {[%emt 0:01:49]} Nf6 {[%emt 0:00:32]} 8. Bc4 {[%emt 0:02:57]} Nbd7 {[%emt 0:01:08]} 9. d4 {[%emt 0:00:20]} e6 {[%emt 0:01:06]} 10. O-O {[%emt 0:02:56]} Be7 {[%emt 0:01:33]} 11. c3 {[%emt 0:00:52]} O-O {[%emt 0:00:18]} 12. Re1 {[%emt 0:00:20]} a5 {[%emt 0:00:44]} 13. a4 {[%emt 0:00:46]} Nb6 {[%emt 0:01:20]} 14. Bd3 {[%emt 0:00:30]} Nbd5 {[%emt 0:00:18]} 15. Bc2 {[%emt 0:01:55]} Qc7 {[%emt 0:01:36]} 16. Ne4 {[%emt 0:02:10]} Rfe8 {[%emt 0:01:35]} 17. Re2 {[%emt 0:08:28]} b5 {[%emt 0:07:03]} 18. h4 {[%emt 0:09:14]} Nxe4 {[%emt 0:01:39]} 19. Bxe4 {[%emt 0:01:38]} Red8 {[%emt 0:05:17]} 20. axb5 {[%emt 0:03:22]} cxb5 {[%emt 0:00:35]} 21. Qd3 {[%emt 0:00:00]} h6 {[%emt 0:01:39]} 22. Qxb5 {[%emt 0:45:28]} Bxh4 {[%emt 0:00:43]} 23. Qd3 {[%emt 0:00:00]} Ra7 {[%emt 0:03:35]} 24. Qh3 {[%emt 0:00:00]} Bf6 {[%emt 0:02:41]} 25. Bxh6 {[%emt 0:00:00]} gxh6 {[%emt 0:01:29]} 26. Qxh6 {[%emt 0:00:00]} Bg7 {[%emt 0:01:23]} 27. Qh7+ {[%emt 0:00:00]} Kf8 {[%emt 0:00:11]} 28. Qh4 {[%emt 0:00:00]} Qe7 {[%emt 0:01:58]} 29. Qg3 {[%emt 0:00:00]} Qd6 {[%emt 0:01:37]} 30. Qg5 {[%emt 0:00:00]} Rdd7 {[%emt 0:01:59]} 31. c4 {[%emt 0:00:00]} Qf4 {[%emt 0:01:13]} 32. Qh5 {[%emt 0:00:00]} Nf6 {[%emt 0:01:02]} 33. Qc5+ {[%emt 0:00:00]} Qd6 {[%emt 0:00:36]} 34. Qg5 {[%emt 0:00:00]} Qxd4 {[%emt 0:00:53]} 35. Bc2 {[%emt 0:00:00]} Qxc4 {[%emt 0:02:21]} 36. Re3 {[%emt 0:00:00]} Qxc2 {[%emt 0:00:44]} 37. Rc3 {[%emt 0:00:00]} Rd1+ {[%emt 0:00:27]} 38. Kh2 {[%emt 0:00:00]} Qh7+ {[%emt 0:00:16]} 39. Rh3 {[%emt 0:00:00]} Qf5 {[%emt 0:02:45]} 40. Qxf5 {[%emt 0:00:00]} exf5 {[%emt 0:00:11]} 41. Rxd1 {[%emt 0:00:00]} Ng4+ {[%emt 0:00:06]} 42. Kg1 {[%emt 0:00:00]} Bxb2 {[%emt 0:00:19]} 43. Rb3 {[%emt 0:00:00]} Bf6 {[%emt 0:01:17]} 44. Rb8+ {[%emt 0:00:00]} Kg7 {[%emt 0:00:26]} 45. Rc1 {[%emt 0:00:00]} Bd4 {[%emt 0:01:19]} 46. Rcc8 {[%emt 0:00:00]} a4 {[%emt 0:01:06]} 47. Ra8 {[%emt 0:00:00]} Bxf2+ {[%emt 0:00:32]} 48. Kf1 {[%emt 0:00:05]} a3 {[%emt 0:02:27]} 49. Rxa7 {[%emt 0:00:05]} Bxa7 {[%emt 0:00:08]} 50. Rc3 {[%emt 0:00:05]} Kg6 {[%emt 0:08:16]} 51. Rxa3 {[%emt 0:00:13]} Bc5 {[%emt 0:00:18]} 52. Ra5 {[%emt 0:00:58]} Bd4 {[%emt 0:00:35]} 53. Ra4 {[%emt 0:00:44]} Be5 {[%emt 0:00:48]} 54. Ke2 {[%emt 0:00:35]} Kg5 {[%emt 0:00:25]} 55. Ra3 {[%emt 0:01:14]} f4 {[%emt 0:01:35]} 56. Ra5 {[%emt 0:00:57]} f6 {[%emt 0:00:44]} 57. Kf3 {[%emt 0:00:11]} Kf5 {[%emt 0:01:09]} 58. Rb5 {[%emt 0:00:23]} Nh6 {[%emt 0:01:03]} 59. Rb7 {[%emt 0:00:34]} Ng8 {[%emt 0:01:21]} 60. Ra7 {[%emt 0:01:00]} Nh6 {[%emt 0:00:49]} 61. Ra8 {[%emt 0:00:31]} Nf7 {[%emt 0:00:21]} 62. Re8 {[%emt 0:00:33]} Ng5+ {[%emt 0:00:13]} 63. Ke2 {[%emt 0:00:31]} Kg4 {[%emt 0:00:13]} 64. Kf1 {[%emt 0:00:24]} Kg3 {[%emt 0:01:58]} 65. Ra8 {[%emt 0:00:11]} Bd4 {[%emt 0:02:33]} 66. Rh8 {[%emt 0:01:10]} Ne4 {[%emt 0:01:34]} 67. Rh3+ {[%emt 0:00:26]} Kg4 {[%emt 0:00:08]} 68. Rd3 {[%emt 0:00:39]} Be3 {[%emt 0:00:20]} 69. Rd8 {[%emt 0:00:21]} Nd2+ {[%emt 0:02:27]} 70. Ke2 {[%emt 0:00:04]} Kg3 {[%emt 0:00:08]} 71. Rg8+ {[%emt 0:00:19]} Kh2 {[%emt 0:00:10]} 72. Rg6 {[%emt 0:00:56]} Ne4 {[%emt 0:00:57]} 73. Kf3 {[%emt 0:00:28]} Ng5+ {[%emt 0:00:18]} 74. Ke2 {[%emt 0:01:16]} Kxg2 {[%emt 0:00:23]} 75. Rxf6 {[%emt 0:00:11]} Ne4 {[%emt 0:00:42]} 76. Rg6+ {[%emt 0:00:42]} Ng3+ {[%emt 0:00:10]} 77. Kd3 {[%emt 0:00:33]} Kf2 {[%emt 0:00:37]} 78. Ra6 {[%emt 0:00:42]} Kf3 {[%emt 0:01:59]} 79. Rg6 {[%emt 0:00:34]} Nh1 {[%emt 0:00:14]} 80. Rf6 {[%emt 0:01:12]} Nf2+ {[%emt 0:00:12]} 81. Kc2 {[%emt 0:00:09]} Ke2 {[%emt 0:00:14]} 82. Rg6 {[%emt 0:00:52]} f3 {[%emt 0:00:23]} 83. Rg1 {[%emt 0:00:47]} Nd3 {[%emt 0:00:52]} 84. Rh1 {[%emt 0:01:21]} Ne1+ {[%emt 0:01:47]} 85. Kc3 {[%emt 0:01:24]} Ng2 {[%emt 0:01:00]} 86. Rb1 {[%emt 0:00:26]} Bd2+ {[%emt 0:00:26]} 87. Kd4 {[%emt 0:00:34]} Ne1 {[%emt 0:05:59]} 88. Rb7 {[%emt 0:00:23]} Be3+ {[%emt 0:00:07]} 89. Ke4 {[%emt 0:00:29]} Nd3 {[%emt 0:01:50]} 90. Rh7 {[%emt 0:01:43]} Bf4 {[%emt 0:01:33]} 91. Rh1 {[%emt 0:00:57]} f2 {[%emt 0:00:16]} 92. Kd4 {[%emt 0:01:04]} Bg3 {[%emt 0:01:17]} 93. Ke4 {[%emt 0:00:28]} Ne1 {[%emt 0:00:31]} 94. Kd4 {[%emt 0:00:33]} Nf3+ {[%emt 0:00:14]} 95. Ke4 {[%emt 0:00:27]} Ng1 {[%emt 0:00:11]} 96. Rh7 {[%emt 0:01:08]} f1=Q {[%emt 0:00:16]} 97. Rd7 {[%emt 0:00:26]} Qf4+ {[%emt 0:01:05]} 98. Kd5 {[%emt 0:00:15]} Nf3 {[%emt 0:00:11]} 99. Ke6 {[%emt 0:00:36]} Qe5+ {[%emt 0:00:16]} 0-1

[Event "Kuwait Championship Stage-I 2024"]
[Site "Qadsiya"]
[Date "2024.01.24"]
[Round "3.6"]
[White "Almohammad, Hamad"]
[Black "AlShourfaa, Hazaa"]
[Result "1-0"]
[ECO "D00"]
[WhiteElo "1296"]
[BlackElo "1701"]
[Annotator "NA"]
[PlyCount "129"]
[EventDate "2024.01.22"]
[EventType "swiss"]
[EventCountry "KUW"]
[SourceTitle "playchess.com"]
[Source "ChessBase"]
[SourceQuality "1"]
[TimeControl "5400+30"]

1. d4 {[%emt 0:02:11]} d5 {[%emt 0:00:08]} 2. Bf4 {[%emt 0:00:07]} Nf6 {[%emt 0:00:22]} 3. e3 {[%emt 0:00:07]} e6 {[%emt 0:00:39]} 4. Bd3 {[%emt 0:00:16]} h6 {[%emt 0:00:26]} 5. Nf3 {[%emt 0:00:12]} Be7 {[%emt 0:01:30]} 6. Nbd2 {[%emt 0:00:56]} O-O {[%emt 0:01:01]} 7. Ne5 {[%emt 0:00:31]} Nbd7 {[%emt 0:04:55]} 8. Qf3 {[%emt 0:08:29]} Nh7 {[%emt 0:08:58]} 9. h4 {[%emt 0:10:02]} Nxe5 {[%emt 0:07:02]} 10. dxe5 {[%emt 0:00:22]} f5 {[%emt 0:10:01]} 11. g4 {[%emt 0:13:20]} Bxh4 {[%emt 0:07:06]} 12. gxf5 {[%emt 0:00:04]} exf5 {[%emt 0:05:56]} 13. O-O-O {[%emt 1:00:23]} Bg5 {[%emt 0:13:23]} 14. Rdg1 {[%emt 0:00:00]} Bxf4 {[%emt 0:01:39]} 15. exf4 {[%emt 0:00:00]} Kh8 {[%emt 0:01:43]} 16. Qg3 {[%emt 0:00:00]} Qe7 {[%emt 0:01:25]} 17. Nf3 {[%emt 0:00:00]} Bd7 {[%emt 0:13:24]} 18. Nh4 {[%emt 0:00:00]} Be8 {[%emt 0:04:13]} 19. Nxf5 {[%emt 0:00:00]} Qf7 {[%emt 0:03:02]} 20. Qxg7+ {[%emt 0:00:00]} Qxg7 {[%emt 0:00:11]} 21. Rxg7 {[%emt 0:00:00]} Rxf5 {[%emt 0:02:10]} 22. Rxh7+ {[%emt 0:00:00]} Kxh7 {[%emt 0:00:10]} 23. Bxf5+ {[%emt 0:00:00]} Bg6 {[%emt 0:00:11]} 24. Bxg6+ {[%emt 0:00:00]} Kxg6 {[%emt 0:00:02]} 25. Kd2 {[%emt 0:00:00]} Rh8 {[%emt 0:03:28]} 26. Ke3 {[%emt 0:00:00]} Rh7 {[%emt 0:00:33]} 27. Rg1+ {[%emt 0:00:00]} Kf5 {[%emt 0:00:37]} 28. Rg8 {[%emt 0:00:00]} c6 {[%emt 0:04:15]} 29. Rf8+ {[%emt 0:00:00]} Ke6 {[%emt 0:01:05]} 30. Rf6+ {[%emt 0:00:00]} Ke7 {[%emt 0:00:07]} 31. f5 {[%emt 0:00:00]} h5 {[%emt 0:00:07]} 32. Kf3 {[%emt 0:00:00]} h4 {[%emt 0:00:08]} 33. Kg2 {[%emt 0:00:00]} h3+ {[%emt 0:00:28]} 34. Kh2 {[%emt 0:00:00]} Rh5 {[%emt 0:00:16]} 35. f4 {[%emt 0:00:00]} Rh4 {[%emt 0:02:59]} 36. Rg6 {[%emt 0:00:00]} Rxf4 {[%emt 0:02:01]} 37. Rg7+ {[%emt 0:00:00]} Kf8 {[%emt 0:00:12]} 38. f6 {[%emt 0:12:30]} Rf5 {[%emt 0:00:52]} 39. Re7 {[%emt 0:00:00]} d4 {[%emt 0:00:55]} 40. Kxh3 {[%emt 0:00:00]} c5 {[%emt 0:00:33]} 41. Rxb7 {[%emt 0:00:00]} Rxe5 {[%emt 0:00:29]} 42. Rxa7 {[%emt 0:00:00]} Re6 {[%emt 0:00:30]} 43. Rc7 {[%emt 0:00:00]} Rb6 {[%emt 0:02:01]} 44. b3 {[%emt 0:00:00]} Rb5 {[%emt 0:00:35]} 45. Kg4 {[%emt 0:00:00]} Ra5 {[%emt 0:00:21]} 46. a4 {[%emt 0:00:00]} Ke8 {[%emt 0:00:02]} 47. f7+ {[%emt 0:00:00]} Kf8 {[%emt 0:00:10]} 48. Kf4 {[%emt 0:00:00]} c4 {[%emt 0:01:11]} 49. Rxc4 {[%emt 0:00:00]} Kxf7 {[%emt 0:00:18]} 50. Rxd4 {[%emt 0:00:00]} Ke6 {[%emt 0:00:29]} 51. Ke4 {[%emt 0:00:00]} Rc5 {[%emt 0:00:48]} 52. Kd3 {[%emt 0:00:00]} Rh5 {[%emt 0:00:52]} 53. Kc4 {[%emt 0:00:00]} Ra5 {[%emt 0:00:13]} 54. c3 {[%emt 0:00:00]} Ke5 {[%emt 0:00:32]} 55. Kb4 {[%emt 0:00:00]} Ra8 {[%emt 0:00:21]} 56. a5 {[%emt 0:00:00]} Rb8+ {[%emt 0:00:20]} 57. Ka4 {[%emt 0:00:00]} Rc8 {[%emt 0:00:10]} 58. Rc4 {[%emt 0:00:00]} Rxc4+ {[%emt 0:01:05]} 59. bxc4 {[%emt 0:00:00]} Kd6 {[%emt 0:00:02]} 60. Kb5 {[%emt 0:00:00]} Kc7 {[%emt 0:00:10]} 61. a6 {[%emt 0:00:00]} Kb8 {[%emt 0:00:35]} 62. Kc6 {[%emt 0:00:00]} Ka7 {[%emt 0:01:29]} 63. Kd7 {[%emt 0:00:00]} Kb6 {[%emt 0:00:31]} 64. c5+ {[%emt 0:00:00]} Ka7 {[%emt 0:00:32]} 65. c6 {[%emt 0:00:00]} 1-0

[Event "Kuwait Championship Stage-I 2024"]
[Site "Qadsiya"]
[Date "2024.01.24"]
[Round "3.7"]
[White "Alenezi, Hamad"]
[Black "Eidi, Eisa"]
[Result "1-0"]
[ECO "C01"]
[WhiteElo "1419"]
[BlackElo "1306"]
[Annotator "NA COMBH RC"]
[PlyCount "119"]
[EventDate "2024.01.22"]
[EventType "swiss"]
[EventCountry "KUW"]
[SourceTitle "playchess.com"]
[Source "ChessBase"]
[SourceQuality "1"]
[TimeControl "5400+30"]

1. e4 {[%emt 0:03:22]} e6 {[%emt 0:00:06]} 2. d4 {[%emt 0:00:09]} d5 {[%emt 0:00:05]} 3. exd5 {[%emt 0:02:15]} exd5 {[%emt 0:00:12]} 4. Nf3 {[%emt 0:00:07]} Nf6 {[%emt 0:00:15]} 5. Bd3 {[%emt 0:00:11]} Bg4 {[%emt 0:00:19]} 6. O-O {[%emt 0:01:23]} Be7 {[%emt 0:00:08]} 7. Bf4 {[%emt 0:00:38]} O-O {[%emt 0:00:23]} 8. c3 {[%emt 0:01:12]} c6 {[%emt 0:00:49]} 9. Nbd2 {[%emt 0:00:38]} Nbd7 {[%emt 0:00:10]} 10. Re1 {[%emt 0:00:40]} Re8 {[%emt 0:00:20]} 11. h3 {[%emt 0:02:11]} Bh5 {[%emt 0:00:16]} 12. Bg3 {[%emt 0:03:10]} Nf8 {[%emt 0:02:48]} 13. Qc2 {[%emt 0:00:59]} Bg6 {[%emt 0:00:29]} 14. Ne5 {[%emt 0:00:54]} Bxd3 {[%emt 0:00:47]} 15. Qxd3 {[%emt 0:00:51]} Ng6 {[%emt 0:02:22]} 16. Qc2 {[%emt 0:13:18]} Rc8 {[%emt 0:07:22]} 17. Qb3 {[%emt 0:01:36]} Qb6 {[%emt 0:02:10]} 18. Rac1 {[%emt 0:02:30]} Bf8 {[%emt 0:03:36]} 19. Ndf3 {[%emt 0:03:09]} c5 {[%emt 0:07:40]} 20. Qxb6 {[%emt 0:13:27]} axb6 {[%emt 0:00:45]} 21. Kf1 {[%emt 0:10:38]} Ne7 {[%emt 0:00:38]} 22. Ng5 {[%emt 0:02:00]} Nc6 {[%emt 0:02:09]} 23. Ngxf7 {[%emt 0:04:27]} cxd4 {[%emt 0:00:20]} 24. cxd4 {[%emt 0:05:09]} Nxd4 {[%emt 0:00:21]} 25. Rcd1 {[%emt 0:10:27]} Nf5 {[%emt 0:04:09]} 26. Bf4 {[%emt 0:03:29]} h6 {[%emt 0:01:03]} 27. g4 {[%emt 0:00:32]} Nd6 {[%emt 0:02:33]} 28. Nxd6 {[%emt 0:00:22]} Bxd6 {[%emt 0:00:18]} 29. Ng6 {[%emt 0:01:17]} Rxe1+ {[%emt 0:02:01]} 30. Rxe1 {[%emt 0:01:00]} Bb4 {[%emt 0:00:29]} 31. Ne7+ {[%emt 0:04:18]} Bxe7 {[%emt 0:00:12]} 32. Rxe7 {[%emt 0:00:13]} Rc2 {[%emt 0:08:00]} 33. Be5 {[%emt 0:01:14]} Ne4 {[%emt 0:00:41]} 34. Bd4 {[%emt 0:01:45]} Nd2+ {[%emt 0:01:27]} 35. Kg2 {[%emt 0:00:48]} Nc4 {[%emt 0:01:32]} 36. Rxg7+ {[%emt 0:00:55]} Kf8 {[%emt 0:00:16]} 37. Rxb7 {[%emt 0:00:46]} Nxb2 {[%emt 0:00:18]} 38. Bxb2 {[%emt 0:01:14]} Rxb2 {[%emt 0:00:14]} 39. a4 {[%emt 0:00:48]} h5 {[%emt 0:04:08]} 40. a5 {[%emt 0:02:11]} hxg4 {[%emt 0:00:02]} 41. hxg4 {[%emt 0:00:16]} Ra2 {[%emt 0:01:12]} 42. axb6 {[%emt 0:00:11]} Rb2 {[%emt 0:00:08]} 43. Rb8+ {[%emt 0:01:42]} Kg7 {[%emt 0:00:13]} 44. b7 {[%emt 0:00:08]} d4 {[%emt 0:00:08]} 45. Kf3 {[%emt 0:00:14]} Rb3+ {[%emt 0:00:11]} 46. Ke4 {[%emt 0:00:48]} Rb4 {[%emt 0:02:25]} 47. f3 {[%emt 0:00:19]} Kh7 {[%emt 0:00:04]} 48. g5 {[%emt 0:01:04]} Kg7 {[%emt 0:00:04]} 49. f4 {[%emt 0:01:12]} Kh7 {[%emt 0:00:11]} 50. f5 {[%emt 0:00:12]} Rb1 {[%emt 0:00:58]} 51. g6+ {[%emt 0:01:00]} Kg7 {[%emt 0:00:16]} 52. f6+ {[%emt 0:00:41]} Kxg6 {[%emt 0:00:39]} 53. Rg8+ {[%emt 0:00:13]} Kf7 {[%emt 0:00:05]} 54. b8=Q {[%emt 0:00:28]} Re1+ {[%emt 0:00:16]} 55. Kd3 {[%emt 0:00:18]} Re3+ {[%emt 0:00:50]} 56. Kxd4 {[%emt 0:00:39]} Re2 {[%emt 0:00:26]} 57. Qc7+ {[%emt 0:00:39]} Kxf6 {[%emt 0:00:14]} 58. Qf4+ {[%emt 0:00:25]} Ke7 {[%emt 0:00:08]} 59. Rg7+ {[%emt 0:00:31]} Kd8 {[%emt 0:00:08] Check Result:?ev?} 60. Qb8# {[%emt 0:00:22]} 1-0

[Event "Kuwait Championship Stage-I 2024"]
[Site "Qadsiya"]
[Date "2024.01.24"]
[Round "3.8"]
[White "Qabazard, Mohamed"]
[Black "Alhassan, Ahmad"]
[Result "1/2-1/2"]
[ECO "B41"]
[WhiteElo "1533"]
[BlackElo "1272"]
[Annotator "NA RC"]
[PlyCount "91"]
[EventDate "2024.01.22"]
[EventType "swiss"]
[EventCountry "KUW"]
[SourceTitle "playchess.com"]
[Source "ChessBase"]
[SourceQuality "1"]
[TimeControl "5400+30"]

1. e4 {[%emt 0:17:31]} c5 {[%emt 0:00:07]} 2. Nf3 {[%emt 0:00:45]} e6 {[%emt 0:00:17]} 3. d4 {[%emt 0:00:23]} cxd4 {[%emt 0:00:15]} 4. Nxd4 {[%emt 0:00:11]} a6 {[%emt 0:00:18]} 5. c4 {[%emt 0:00:26]} Nf6 {[%emt 0:00:19]} 6. Nc3 {[%emt 0:00:22]} d6 {[%emt 0:00:44]} 7. Bd3 {[%emt 0:00:35]} Be7 {[%emt 0:00:36]} 8. Bg5 {[%emt 0:02:52]} Nbd7 {[%emt 0:02:10]} 9. f3 {[%emt 0:01:32]} b6 {[%emt 0:02:14]} 10. Nc6 {[%emt 1:10:53]} Qc7 {[%emt 0:00:55]} 11. Nxe7 {[%emt 0:00:00]} Kxe7 {[%emt 0:00:14]} 12. b3 {[%emt 0:00:00]} h6 {[%emt 0:08:36]} 13. Bh4 {[%emt 0:00:00]} Re8 {[%emt 0:02:12]} 14. g4 {[%emt 0:00:00]} g5 {[%emt 0:01:24]} 15. Bg3 {[%emt 0:00:00]} Bb7 {[%emt 0:01:20]} 16. h4 {[%emt 0:00:00]} Rh8 {[%emt 0:01:50]} 17. Qd2 {[%emt 0:00:00]} Rag8 {[%emt 0:03:15]} 18. Be2 {[%emt 0:00:00]} Ne8 {[%emt 0:04:17]} 19. O-O-O {[%emt 0:00:00]} e5 {[%emt 0:02:10]} 20. hxg5 {[%emt 0:00:00]} hxg5 {[%emt 0:01:52]} 21. Rxh8 {[%emt 0:00:00]} Rxh8 {[%emt 0:00:14]} 22. Qxg5+ {[%emt 0:00:00]} Ndf6 {[%emt 0:06:12]} 23. Kb2 {[%emt 0:00:00]} Rg8 {[%emt 0:01:56]} 24. Qe3 {[%emt 0:00:00]} Nd7 {[%emt 0:06:13]} 25. Bh4+ {[%emt 0:00:00]} f6 {[%emt 0:01:25]} 26. g5 {[%emt 0:00:00]} Kd8 {[%emt 0:03:38]} 27. gxf6 {[%emt 0:00:00]} Nexf6 {[%emt 0:02:16]} 28. Qh6 {[%emt 0:00:00]} Rf8 {[%emt 0:01:05]} 29. Bf1 {[%emt 0:00:00]} Kc8 {[%emt 0:02:41]} 30. Bh3 {[%emt 0:00:00]} Bc6 {[%emt 0:01:15]} 31. Qxf8+ {[%emt 0:00:00]} Kb7 {[%emt 0:00:40]} 32. Bxf6 {[%emt 0:00:00]} Nxf8 {[%emt 0:00:16]} 33. Bg5 {[%emt 0:00:00]} Bd7 {[%emt 0:01:19]} 34. Bg2 {[%emt 0:00:00]} Qc5 {[%emt 0:01:30]} 35. Rd2 {[%emt 0:00:00]} Ne6 {[%emt 0:01:27]} 36. Be7 {[%emt 0:00:00]} Nd4 {[%emt 0:01:30]} 37. Bg5 {[%emt 0:00:00]} Be8 {[%emt 0:01:35]} 38. Be3 {[%emt 0:00:00]} b5 {[%emt 0:01:18]} 39. Bf1 {[%emt 0:00:00]} Bf7 {[%emt 0:01:34]} 40. cxb5 {[%emt 0:00:00]} axb5 {[%emt 0:02:13]} 41. Nxb5 {[%emt 0:00:00]} Bh5 {[%emt 0:12:29]} 42. f4 {[%emt 0:00:00]} Bf3 {[%emt 0:02:42]} 43. fxe5 {[%emt 0:00:00]} dxe5 {[%emt 0:00:31]} 44. Nc3 {[%emt 0:00:00]} Qb4 {[%emt 0:02:47]} 45. Bc4 {[%emt 0:00:00]} Kb6 {[%emt 0:19:09]} 46. Bd5 {[%emt 0:18:00]} 1/2-1/2

[Event "Kuwait Championship Stage-I 2024"]
[Site "Qadsiya"]
[Date "2024.01.24"]
[Round "3.9"]
[White "Husain, Sulaiman A.M."]
[Black "Alrashidi, Yousef"]
[Result "0-1"]
[ECO "D00"]
[WhiteElo "1636"]
[BlackElo "1512"]
[Annotator "NA RC"]
[PlyCount "52"]
[EventDate "2024.01.22"]
[EventType "swiss"]
[EventCountry "KUW"]
[SourceTitle "playchess.com"]
[Source "ChessBase"]
[SourceQuality "1"]
[TimeControl "5400+30"]

1. d4 {[%emt 0:00:15]} d5 {[%emt 0:00:12]} 2. e4 {[%emt 0:00:23]} dxe4 {[%emt 0:00:13]} 3. Nc3 {[%emt 0:00:01]} Nf6 {[%emt 0:00:59]} 4. f3 {[%emt 0:00:02]} exf3 {[%emt 0:00:31]} 5. Nxf3 {[%emt 0:00:02]} e6 {[%emt 0:00:19]} 6. Bd3 {[%emt 0:00:03]} h6 {[%emt 0:00:29]} 7. O-O {[%emt 0:00:05]} Be7 {[%emt 0:00:24]} 8. Ne4 {[%emt 0:00:50]} Nbd7 {[%emt 0:00:54]} 9. Qe1 {[%emt 0:00:22]} Nxe4 {[%emt 0:01:01]} 10. Bxe4 {[%emt 0:00:40]} Nf6 {[%emt 0:00:16]} 11. Bd3 {[%emt 0:00:42]} O-O {[%emt 0:06:36]} 12. Qg3 {[%emt 0:01:02]} Kh8 {[%emt 0:01:43]} 13. Be3 {[%emt 0:10:25]} Bd6 {[%emt 0:01:04]} 14. Ne5 {[%emt 0:01:43]} Bxe5 {[%emt 0:03:08]} 15. dxe5 {[%emt 0:00:02]} Ng8 {[%emt 0:00:18]} 16. Rxf7 {[%emt 0:01:40]} Rxf7 {[%emt 0:03:12]} 17. Qg6 {[%emt 0:00:11]} Nf6 {[%emt 0:00:20]} 18. exf6 {[%emt 0:00:03]} Qg8 {[%emt 0:00:12]} 19. Bxh6 {[%emt 0:02:10]} Rxf6 {[%emt 0:00:49]} 20. Bxg7+ {[%emt 0:01:20]} Qxg7 {[%emt 0:00:40]} 21. Qe8+ {[%emt 0:03:37]} Rf8 {[%emt 0:01:01]} 22. Qh5+ {[%emt 0:00:05]} Kg8 {[%emt 0:00:05]} 23. Re1 {[%emt 0:01:44]} Rf7 {[%emt 0:11:56]} 24. Re4 {[%emt 0:02:07]} Qf6 {[%emt 0:08:23]} 25. Rg4+ {[%emt 0:07:03]} Kf8 {[%emt 0:00:34]} 26. Rg3 {[%emt 0:01:11]} Qf2+ {[%emt 0:00:37]} 0-1

[Event "Kuwait Championship Stage-I 2024"]
[Site "Qadsiya"]
[Date "2024.01.24"]
[Round "3.10"]
[White "Alruwaiyeh, Musa"]
[Black "Alsayer, Bader"]
[Result "1-0"]
[ECO "B44"]
[WhiteElo "1505"]
[BlackElo "1260"]
[Annotator "NA RC COMBH"]
[PlyCount "91"]
[EventDate "2024.01.22"]
[EventType "swiss"]
[EventCountry "KUW"]
[SourceTitle "playchess.com"]
[Source "ChessBase"]
[SourceQuality "1"]
[TimeControl "5400+30"]

1. e4 {[%emt 0:01:30]} c5 {[%emt 0:00:06]} 2. Nf3 {[%emt 0:01:01]} Nc6 {[%emt 0:00:06]} 3. d4 {[%emt 0:00:17]} cxd4 {[%emt 0:00:04]} 4. Nxd4 {[%emt 0:00:28]} e6 {[%emt 0:00:04]} 5. a3 {[%emt 0:02:10]} d5 {[%emt 0:00:31]} 6. Nc3 {[%emt 0:03:44]} a6 {[%emt 0:01:04]} 7. Be2 {[%emt 0:05:09]} dxe4 {[%emt 0:02:02]} 8. Nxc6 {[%emt 0:00:53]} Qxd1+ {[%emt 0:00:16]} 9. Bxd1 {[%emt 0:01:38]} bxc6 {[%emt 0:00:03]} 10. Nxe4 {[%emt 0:00:15]} f5 {[%emt 0:01:39]} 11. Nc3 {[%emt 0:02:36]} Nf6 {[%emt 0:00:41]} 12. Bf3 {[%emt 0:01:34]} Bd7 {[%emt 0:01:29]} 13. O-O {[%emt 0:02:50]} h6 {[%emt 0:01:06]} 14. Bf4 {[%emt 0:02:58]} g5 {[%emt 1:28:19]} 15. Be5 {[%emt 0:00:11]} Be7 {[%emt 0:00:00]} 16. Bh5+ {[%emt 0:06:55]} Kf8 {[%emt 0:00:00]} 17. Rad1 {[%emt 0:00:40]} Be8 {[%emt 0:00:00]} 18. Bxe8 {[%emt 0:04:09]} Rxe8 {[%emt 0:00:00]} 19. Bxf6 {[%emt 0:04:09]} Bxf6 {[%emt 0:02:30]} 20. Rd6 {[%emt 0:01:16]} g4 {[%emt 0:00:00]} 21. Rxc6 {[%emt 0:02:48]} Kf7 {[%emt 0:00:00]} 22. Re1 {[%emt 0:03:41]} h5 {[%emt 0:00:00]} 23. Rxa6 {[%emt 0:01:57]} Rb8 {[%emt 0:00:00]} 24. Raxe6 {[%emt 0:03:44]} Rxb2 {[%emt 0:00:00]} 25. Nd5 {[%emt 0:01:58]} Rh6 {[%emt 0:00:00]} 26. Nxf6 {[%emt 0:05:58]} Rxf6 {[%emt 0:03:30]} 27. Rxf6+ {[%emt 0:01:28]} Kxf6 {[%emt 0:00:00]} 28. Ra1 {[%emt 0:00:59]} Rxc2 {[%emt 0:00:00]} 29. a4 {[%emt 0:01:08]} Rc6 {[%emt 0:00:00]} 30. a5 {[%emt 0:00:03]} Ra6 {[%emt 0:00:00]} 31. g3 {[%emt 0:01:06]} Kg5 {[%emt 0:00:00]} 32. h3 {[%emt 0:04:19]} h4 {[%emt 0:00:00]} 33. gxh4+ {[%emt 0:02:00]} Kxh4 {[%emt 0:00:00]} 34. hxg4 {[%emt 0:00:10]} Kxg4 {[%emt 0:00:00]} 35. Kg2 {[%emt 0:00:32]} f4 {[%emt 0:00:00]} 36. Ra4 {[%emt 0:00:14]} Kg5 {[%emt 0:00:00]} 37. Kf3 {[%emt 0:00:25]} Kg6 {[%emt 0:00:00]} 38. Kxf4 {[%emt 0:00:23]} Kf6 {[%emt 0:00:00]} 39. Kg4 {[%emt 0:00:45]} Kg6 {[%emt 0:00:00]} 40. f4 {[%emt 0:00:36]} Kf6 {[%emt 0:00:00]} 41. Kg3 {[%emt 0:00:35]} Kg6 {[%emt 0:00:00]} 42. Kf3 {[%emt 0:00:55]} Kf5 {[%emt 0:00:00]} 43. Ke3 {[%emt 0:00:14]} Re6+ {[%emt 0:00:00]} 44. Kd3 {[%emt 0:00:02]} Rd6+ {[%emt 0:00:00]} 45. Kc3 {[%emt 0:00:01]} Rc6+ {[%emt 0:00:00]} 46. Kb4 {[%emt 0:01:47]} 1-0